[Event "2nd Serbian League-Vojvodina 2023"]
[Site "Novi Sad"]
[Date "2023.11.03"]
[Round "2.17"]
[White "Ilincic, Aleksa"]
[Black "Radlovacki, Jovan"]
[Result "1-0"]
[ECO "B12"]
[WhiteElo "2235"]
[BlackElo "2268"]
[Annotator "RC"]
[PlyCount "93"]
[EventDate "2023.10.22"]
[EventType "team-tourn"]
[EventCountry "SRB"]
[SourceTitle "playchess.com"]
[Source "ChessBase"]
[SourceQuality "1"]
[TimeControl "40/5400+30:1800+30"]

1. e4 {[%emt 1:31:00]} c6 {[%emt 1:31:00]} 2. d4 {[%emt 0:00:30]} d5 {[%emt 0:00:30]} 3. Nd2 {[%emt 0:00:30]} g6 {[%emt 0:00:30]} 4. c3 {[%emt 0:00:30]} Bg7 {[%emt 0:00:30]} 5. a4 {[%emt 0:00:30]} Nh6 {[%emt 0:00:30]} 6. Ngf3 {[%emt 0:00:30]} O-O {[%emt 0:00:30]} 7. Bd3 {[%emt 0:00:30]} f6 {[%emt 0:00:30]} 8. O-O {[%emt 0:00:30]} Nf7 {[%emt 0:00:30]} 9. Re1 {[%emt 0:00:30]} e6 {[%emt 0:00:30]} 10. Qc2 {[%emt 0:00:30]} Na6 {[%emt 0:00:30]} 11. b4 {[%emt 0:00:30]} Nc7 {[%emt 0:00:30]} 12. Nb3 {[%emt 0:00:30]} e5 {[%emt 0:00:30]} 13. dxe5 {[%emt 0:00:30]} fxe5 {[%emt 0:00:30]} 14. Be3 {[%emt 0:00:30]} Qf6 {[%emt 0:00:30]} 15. Bf1 {[%emt 0:00:30]} Rd8 {[%emt 0:00:30]} 16. b5 {[%emt 0:00:30]} cxb5 {[%emt 0:00:30]} 17. axb5 {[%emt 0:00:30]} b6 {[%emt 0:00:30]} 18. exd5 {[%emt 0:00:30]} Nxd5 {[%emt 0:00:30]} 19. Rad1 {[%emt 0:00:30]} Bb7 {[%emt 0:00:30]} 20. Nbd2 {[%emt 0:00:30]} Rac8 {[%emt 0:00:30]} 21. Ne4 {[%emt 0:00:30]} Qf5 {[%emt 0:00:30]} 22. Qa4 {[%emt 0:00:30]} Ra8 {[%emt 0:00:30]} 23. Nh4 {[%emt 0:00:30]} Qc8 {[%emt 0:00:30]} 24. Bc1 {[%emt 0:00:30]} Nf6 {[%emt 0:00:30]} 25. Rxd8+ {[%emt 0:00:30]} Qxd8 {[%emt 0:00:30]} 26. Ng5 {[%emt 0:00:30]} Nxg5 {[%emt 0:00:30]} 27. Bxg5 {[%emt 0:00:30]} Qe8 {[%emt 0:00:30]} 28. Bc4+ {[%emt 0:00:30]} Kh8 {[%emt 0:00:30]} 29. Qb3 {[%emt 0:00:30]} Ne4 {[%emt 0:00:30]} 30. Be3 {[%emt 0:00:30]} Rc8 {[%emt 0:00:30]} 31. Bf7 {[%emt 0:00:30]} Qe7 {[%emt 0:00:30]} 32. Nf3 {[%emt 0:00:30]} Rxc3 {[%emt 0:00:30]} 33. Qa2 {[%emt 0:00:30]} Rc7 {[%emt 0:00:30]} 34. Bb3 {[%emt 0:00:30]} Rc3 {[%emt 0:00:30]} 35. Qxa7 {[%emt 0:00:30]} Rxb3 {[%emt 0:00:30]} 36. Qb8+ {[%emt 0:00:30]} Bf8 {[%emt 0:00:30]} 37. Bh6 {[%emt 0:00:30]} Rxf3 {[%emt 0:00:30]} 38. gxf3 {[%emt 0:00:30]} Ng5 {[%emt 0:00:30]} 39. Bxf8 {[%emt 0:00:30]} Nxf3+ {[%emt 0:00:30]} 40. Kf1 {[%emt 0:00:30]} Nxh2+ {[%emt 0:00:30]} 41. Ke2 {[%emt 0:30:30]} Bf3+ {[%emt 0:30:30]} 42. Kd3 {[%emt 0:00:30]} Qb7 {[%emt 0:00:30]} 43. Qxe5+ {[%emt 0:00:30]} Kg8 {[%emt 0:00:30]} 44. Bd6 {[%emt 0:00:30]} Qf7 {[%emt 0:00:30]} 45. Qe8+ {[%emt 0:00:30]} Qxe8 {[%emt 0:00:30]} 46. Rxe8+ {[%emt 0:00:30]} Kf7 {[%emt 0:00:30]} 47. Re3 {[%emt 0:00:30]} 1-0

[Event "2nd Serbian League-Vojvodina 2023"]
[Site "Novi Sad"]
[Date "2023.11.03"]
[Round "2.19"]
[White "Horvath, Zsolt"]
[Black "Skvortsov, Andrei"]
[Result "1-0"]
[ECO "B30"]
[WhiteElo "2377"]
[BlackElo "2294"]
[Annotator "RC"]
[PlyCount "111"]
[EventDate "2023.10.22"]
[EventType "team-tourn"]
[EventCountry "SRB"]
[SourceTitle "playchess.com"]
[Source "ChessBase"]
[SourceQuality "1"]
[TimeControl "40/5400+30:1800+30"]

1. e4 {[%emt 0:00:56]} c5 {[%emt 0:00:33]} 2. Nf3 {[%emt 0:00:19]} e6 {[%emt 0:00:33]} 3. d3 {[%emt 0:01:51]} Nc6 {[%emt 0:01:00]} 4. g3 {[%emt 0:00:15]} Nf6 {[%emt 0:01:01]} 5. Bg2 {[%emt 0:00:27]} Be7 {[%emt 0:00:58]} 6. O-O {[%emt 0:00:26]} O-O {[%emt 0:00:22]} 7. Re1 {[%emt 0:04:19]} d6 {[%emt 0:02:20]} 8. c3 {[%emt 0:01:59]} e5 {[%emt 0:00:07]} 9. h3 {[%emt 0:03:32]} Re8 {[%emt 0:00:20]} 10. d4 {[%emt 0:03:42]} exd4 {[%emt 0:00:26]} 11. cxd4 {[%emt 0:00:16]} Bf8 {[%emt 0:00:20]} 12. Nc3 {[%emt 0:07:09]} a6 {[%emt 0:02:20]} 13. Bf4 {[%emt 0:12:59]} cxd4 {[%emt 0:05:15]} 14. Nxd4 {[%emt 0:00:22]} Ne5 {[%emt 0:01:09]} 15. Rc1 {[%emt 0:03:37]} h6 {[%emt 0:04:16]} 16. b3 {[%emt 0:07:03]} Bd7 {[%emt 0:04:14]} 17. Be3 {[%emt 0:02:19]} Rc8 {[%emt 0:01:07]} 18. f4 {[%emt 0:01:02]} Nc6 {[%emt 0:01:36]} 19. Qd2 {[%emt 0:08:44]} Nxd4 {[%emt 0:01:47]} 20. Bxd4 {[%emt 0:00:36]} Bc6 {[%emt 0:00:26]} 21. Qf2 {[%emt 0:09:43]} Nd7 {[%emt 0:01:45]} 22. Rcd1 {[%emt 0:03:37]} Be7 {[%emt 0:04:54]} 23. h4 {[%emt 0:04:24]} b5 {[%emt 0:09:55]} 24. Bh3 {[%emt 0:01:45]} Rb8 {[%emt 0:02:52]} 25. Rd2 {[%emt 0:03:42]} Bf8 {[%emt 0:06:47]} 26. Kh2 {[%emt 0:08:03]} Qc7 {[%emt 0:05:38]} 27. Nd5 {[%emt 0:04:56]} Qb7 {[%emt 0:00:35]} 28. Bg2 {[%emt 0:00:14]} Nc5 {[%emt 0:07:20]} 29. Bb2 {[%emt 0:00:24]} a5 {[%emt 0:01:40]} 30. Qd4 {[%emt 0:01:40]} Re6 {[%emt 0:02:19]} 31. Rde2 {[%emt 0:02:20]} Nd7 {[%emt 0:05:32]} 32. g4 {[%emt 0:01:37]} Rbe8 {[%emt 0:01:16]} 33. Re3 {[%emt 0:00:22]} Nc5 {[%emt 0:07:32]} 34. g5 {[%emt 0:00:23]} hxg5 {[%emt 0:01:50]} 35. hxg5 {[%emt 0:00:04]} Bxd5 {[%emt 0:03:08]} 36. exd5 {[%emt 0:00:07]} Rxe3 {[%emt 0:00:02]} 37. Rxe3 {[%emt 0:00:06]} Rxe3 {[%emt 0:04:05]} 38. Qxe3 {[%emt 0:00:04]} b4 {[%emt 0:01:57]} 39. Bd4 {[%emt 0:01:00]} Qe7 {[%emt 0:01:10]} 40. Kg3 {[%emt 0:00:39]} g6 {[%emt 0:04:35]} 41. Qxe7 {[%emt 0:30:55]} Bxe7 {[%emt 0:30:01]} 42. Kf3 {[%emt 0:00:37]} Kf8 {[%emt 0:01:04]} 43. Bf1 {[%emt 0:00:11]} Bd8 {[%emt 0:02:05]} 44. Bxc5 {[%emt 0:00:31]} dxc5 {[%emt 0:00:07]} 45. d6 {[%emt 0:00:06]} f6 {[%emt 0:00:28]} 46. gxf6 {[%emt 0:01:14]} Bxf6 {[%emt 0:01:04]} 47. Ke4 {[%emt 0:00:03]} Ke8 {[%emt 0:00:42]} 48. Kd5 {[%emt 0:00:07]} Bd4 {[%emt 0:02:44]} 49. Bd3 {[%emt 0:00:10]} Kf7 {[%emt 0:00:09]} 50. Kc6 {[%emt 0:00:39]} Bf6 {[%emt 0:00:32]} 51. Kc7 {[%emt 0:00:25]} Ke6 {[%emt 0:01:29]} 52. Bxg6 {[%emt 0:00:52]} c4 {[%emt 0:00:28]} 53. bxc4 {[%emt 0:00:27]} a4 {[%emt 0:00:01]} 54. Bc2 {[%emt 0:00:19]} b3 {[%emt 0:00:05]} 55. axb3 {[%emt 0:00:29]} a3 {[%emt 0:00:02]} 56. Bb1 {[%emt 0:04:22]} 1-0

[Event "2nd Serbian League-Vojvodina 2023"]
[Site "Novi Sad"]
[Date "2023.11.03"]
[Round "2.20"]
[White "Levitan, Caleb Levi"]
[Black "Szalai, Kornel"]
[Result "1/2-1/2"]
[ECO "B06"]
[WhiteElo "2219"]
[BlackElo "2383"]
[Annotator "RC"]
[PlyCount "34"]
[EventDate "2023.10.22"]
[EventType "team-tourn"]
[EventCountry "SRB"]
[SourceTitle "playchess.com"]
[Source "ChessBase"]
[SourceQuality "1"]
[TimeControl "40/5400+30:1800+30"]

1. e4 {[%emt 0:00:03]} g6 {[%emt 0:01:09]} 2. d4 {[%emt 0:00:20]} Bg7 {[%emt 0:00:04]} 3. Nf3 {[%emt 0:00:13]} c6 {[%emt 0:00:34]} 4. c3 {[%emt 0:03:52]} d6 {[%emt 0:02:30]} 5. Bd3 {[%emt 0:01:30]} Nf6 {[%emt 0:01:09]} 6. Qe2 {[%emt 0:00:37]} O-O {[%emt 0:10:58]} 7. O-O {[%emt 0:01:21]} Bg4 {[%emt 0:00:40]} 8. Nbd2 {[%emt 0:03:41]} Nbd7 {[%emt 0:04:21]} 9. h3 {[%emt 0:02:22]} Bxf3 {[%emt 0:00:10]} 10. Nxf3 {[%emt 0:00:21]} e5 {[%emt 0:00:10]} 11. dxe5 {[%emt 0:02:10]} dxe5 {[%emt 0:01:10]} 12. Be3 {[%emt 0:01:21]} Qe7 {[%emt 0:05:26]} 13. Bc2 {[%emt 0:01:44]} Nc5 {[%emt 0:02:29]} 14. Nd2 {[%emt 0:02:52]} a5 {[%emt 0:01:39]} 15. a4 {[%emt 0:03:58]} Nfd7 {[%emt 0:01:20]} 16. Nc4 {[%emt 0:06:18]} Bf6 {[%emt 0:08:09]} 17. Rfd1 {[%emt 0:04:38]} Rfd8 {[%emt 0:12:50]} 1/2-1/2

[Event "2nd Serbian League-Vojvodina 2023"]
[Site "Novi Sad"]
[Date "2023.11.03"]
[Round "2.21"]
[White "Nadj Hedjesi, Balind"]
[Black "Ljepic, Andrej"]
[Result "1-0"]
[ECO "B31"]
[WhiteElo "2227"]
[BlackElo "2236"]
[Annotator "RC"]
[PlyCount "89"]
[EventDate "2023.10.22"]
[EventType "team-tourn"]
[EventCountry "SRB"]
[SourceTitle "playchess.com"]
[Source "ChessBase"]
[SourceQuality "1"]
[TimeControl "40/5400+30:1800+30"]

1. e4 {[%emt 0:03:22]} c5 {[%emt 0:00:08]} 2. Nf3 {[%emt 0:00:12]} Nc6 {[%emt 0:00:08]} 3. Bb5 {[%emt 0:00:07]} g6 {[%emt 0:00:06]} 4. Bxc6 {[%emt 0:00:06]} dxc6 {[%emt 0:00:06]} 5. d3 {[%emt 0:00:10]} Bg7 {[%emt 0:00:09]} 6. h3 {[%emt 0:00:18]} Nf6 {[%emt 0:00:39]} 7. Be3 {[%emt 0:00:21]} Nd7 {[%emt 0:00:20]} 8. Nc3 {[%emt 0:00:24]} e5 {[%emt 0:00:31]} 9. Qd2 {[%emt 0:01:20]} Qe7 {[%emt 0:03:32]} 10. Bh6 {[%emt 0:01:30]} f6 {[%emt 0:00:27]} 11. O-O {[%emt 0:01:53]} Nf8 {[%emt 0:02:20]} 12. a3 {[%emt 0:13:45]} Bxh6 {[%emt 0:07:15]} 13. Qxh6 {[%emt 0:00:02]} Ne6 {[%emt 0:00:09]} 14. Ne2 {[%emt 0:01:01]} g5 {[%emt 0:03:05]} 15. b4 {[%emt 0:04:40]} Rg8 {[%emt 0:10:50]} 16. bxc5 {[%emt 0:08:07]} Rg6 {[%emt 0:03:22]} 17. Qh5 {[%emt 0:01:03]} Kf8 {[%emt 0:01:58]} 18. Nh2 {[%emt 0:08:21]} Kg8 {[%emt 0:03:22]} 19. Qf3 {[%emt 0:03:32]} Qxc5 {[%emt 0:03:20]} 20. Ng4 {[%emt 0:07:12]} Nf4 {[%emt 0:01:58]} 21. Ne3 {[%emt 0:03:42]} Be6 {[%emt 0:08:15]} 22. Rfd1 {[%emt 0:01:53]} Rd8 {[%emt 0:02:41]} 23. Ng3 {[%emt 0:02:35]} Rd7 {[%emt 0:04:47]} 24. Kh2 {[%emt 0:04:41]} Qc3 {[%emt 0:12:47]} 25. a4 {[%emt 0:02:02]} a5 {[%emt 0:00:39]} 26. Rab1 {[%emt 0:03:24]} Kh8 {[%emt 0:03:03]} 27. Rb6 {[%emt 0:07:00]} Qd4 {[%emt 0:10:57]} 28. Rdb1 {[%emt 0:01:08]} Qxa4 {[%emt 0:00:31]} 29. Rxb7 {[%emt 0:00:23]} Rxb7 {[%emt 0:00:38]} 30. Rxb7 {[%emt 0:00:02]} Rg7 {[%emt 0:01:33]} 31. Rxg7 {[%emt 0:04:29]} Kxg7 {[%emt 0:00:05]} 32. Ngf5+ {[%emt 0:00:07]} Bxf5 {[%emt 0:03:21]} 33. Nxf5+ {[%emt 0:00:40]} Kg6 {[%emt 0:00:32]} 34. Ne3 {[%emt 0:03:29]} Qa2 {[%emt 0:06:12]} 35. g3 {[%emt 0:00:55]} a4 {[%emt 0:00:21]} 36. gxf4 {[%emt 0:01:55]} exf4 {[%emt 0:00:28]} 37. Nc4 {[%emt 0:00:26]} Qxc2 {[%emt 0:00:46]} 38. e5 {[%emt 0:03:17]} f5 {[%emt 0:01:48]} 39. Kg2 {[%emt 0:00:58]} Qc3 {[%emt 0:01:07]} 40. Qxc6+ {[%emt 0:00:11]} Kh5 {[%emt 0:00:06]} 41. Qd7 {[%emt 0:33:01]} h6 {[%emt 0:30:51]} 42. Qf7+ {[%emt 0:00:38]} Kh4 {[%emt 0:00:07]} 43. Qxf5 {[%emt 0:00:11]} h5 {[%emt 0:00:03]} 44. e6 {[%emt 0:01:22]} a3 {[%emt 0:00:47]} 45. Ne5 {[%emt 0:00:16]} 1-0

[Event "2nd Serbian League-Vojvodina 2023"]
[Site "Novi Sad"]
[Date "2023.11.03"]
[Round "2.22"]
[White "Dimitrijevic, Nenad"]
[Black "Farkas, Tibor"]
[Result "*"]
[ECO "B80"]
[WhiteElo "2196"]
[BlackElo "2210"]
[Annotator "RC"]
[PlyCount "35"]
[EventDate "2023.10.22"]
[EventType "team-tourn"]
[EventCountry "SRB"]
[SourceTitle "playchess.com"]
[Source "ChessBase"]
[SourceQuality "1"]
[TimeControl "40/5400+30:1800+30"]

1. e4 {[%emt 0:08:30]} c5 {[%emt 0:00:29]} 2. Nf3 {[%emt 0:00:50]} d6 {[%emt 0:00:52]} 3. d4 {[%emt 0:00:16]} cxd4 {[%emt 0:00:09]} 4. Nxd4 {[%emt 0:00:27]} Nf6 {[%emt 0:00:15]} 5. Nc3 {[%emt 0:00:09]} a6 {[%emt 0:01:06]} 6. f3 {[%emt 0:00:35]} e6 {[%emt 0:01:42]} 7. Be3 {[%emt 0:02:04]} b5 {[%emt 0:02:12]} 8. a3 {[%emt 0:04:39]} Bb7 {[%emt 0:02:50]} 9. Qd2 {[%emt 0:00:46]} Be7 {[%emt 0:00:49]} 10. O-O-O {[%emt 0:01:04]} O-O {[%emt 0:11:34]} 11. g4 {[%emt 0:02:23]} Nc6 {[%emt 0:00:13]} 12. g5 {[%emt 0:02:30]} Nd7 {[%emt 0:00:23]} 13. Nxc6 {[%emt 0:06:41]} Bxc6 {[%emt 0:01:11]} 14. h4 {[%emt 0:04:18]} Qb8 {[%emt 0:00:43]} 15. g6 {[%emt 0:04:02]} b4 {[%emt 0:16:20]} 16. gxh7+ {[%emt 0:09:22]} Kxh7 {[%emt 0:07:56]} 17. axb4 {[%emt 0:00:49]} Qxb4 {[%emt 0:00:06]} 18. Nb1 {[%emt 0:00:42]} *

[Event "2nd Serbian League-Vojvodina 2023"]
[Site "Novi Sad"]
[Date "2023.11.03"]
[Round "2.23"]
[White "Juhasz, Bence R"]
[Black "Sokic, Dragomir"]
[Result "1-0"]
[ECO "B06"]
[WhiteElo "2210"]
[BlackElo "2095"]
[Annotator "RC"]
[PlyCount "37"]
[EventDate "2023.10.22"]
[EventType "team-tourn"]
[EventCountry "SRB"]
[SourceTitle "playchess.com"]
[Source "ChessBase"]
[SourceQuality "1"]
[TimeControl "40/5400+30:1800+30"]

1. e4 {[%emt 0:00:17]} g6 {[%emt 0:02:55]} 2. d4 {[%emt 0:00:30]} Bg7 {[%emt 0:00:08]} 3. Nc3 {[%emt 0:00:12]} d6 {[%emt 0:00:09]} 4. Be3 {[%emt 0:02:30]} Nd7 {[%emt 0:02:36]} 5. Qd2 {[%emt 0:00:40]} c5 {[%emt 0:03:39]} 6. Nf3 {[%emt 0:04:05]} Qa5 {[%emt 0:01:16]} 7. Bc4 {[%emt 0:05:39]} Nb6 {[%emt 0:04:53]} 8. Be2 {[%emt 0:00:18]} cxd4 {[%emt 0:05:15]} 9. Nxd4 {[%emt 0:00:36]} Be6 {[%emt 0:08:35]} 10. Ncb5 {[%emt 0:19:38]} Qxd2+ {[%emt 0:00:47]} 11. Kxd2 {[%emt 0:01:04]} Kd7 {[%emt 0:02:16]} 12. Nxe6 {[%emt 0:00:39]} fxe6 {[%emt 0:00:12]} 13. c3 {[%emt 0:01:15]} Nf6 {[%emt 0:00:27]} 14. f3 {[%emt 0:00:15]} Nc8 {[%emt 0:03:40]} 15. a4 {[%emt 0:05:20]} h5 {[%emt 0:06:12]} 16. Kc2 {[%emt 0:02:57]} a6 {[%emt 0:05:02]} 17. Nd4 {[%emt 0:02:19]} Na7 {[%emt 0:04:03]} 18. Bc4 {[%emt 0:03:48]} d5 {[%emt 0:01:42]} 19. Ba2 {[%emt 0:00:18]} 1-0

[Event "2nd Serbian League-Vojvodina 2023"]
[Site "Novi Sad"]
[Date "2023.11.03"]
[Round "2.24"]
[White "Leskovac, Nikola"]
[Black "Kecskemeti, Arpad"]
[Result "0-1"]
[ECO "B90"]
[WhiteElo "1927"]
[BlackElo "2185"]
[Annotator "RC"]
[PlyCount "78"]
[EventDate "2023.10.22"]
[EventType "team-tourn"]
[EventCountry "SRB"]
[SourceTitle "playchess.com"]
[Source "ChessBase"]
[SourceQuality "1"]
[TimeControl "40/5400+30:1800+30"]

1. e4 {[%emt 0:00:07]} c5 {[%emt 0:01:19]} 2. Nf3 {[%emt 0:01:18]} d6 {[%emt 0:00:13]} 3. d4 {[%emt 0:01:05]} cxd4 {[%emt 0:00:05]} 4. Nxd4 {[%emt 0:00:48]} Nf6 {[%emt 0:00:06]} 5. Nc3 {[%emt 0:01:48]} a6 {[%emt 0:00:06]} 6. f3 {[%emt 0:01:33]} e5 {[%emt 0:00:11]} 7. Nb3 {[%emt 0:01:20]} Be6 {[%emt 0:00:26]} 8. Be3 {[%emt 0:00:56]} Be7 {[%emt 0:00:09]} 9. Qd2 {[%emt 0:02:56]} h5 {[%emt 0:00:10]} 10. O-O-O {[%emt 0:05:15]} Nbd7 {[%emt 0:00:41]} 11. Kb1 {[%emt 0:04:20]} Qc7 {[%emt 0:01:34]} 12. Nd5 {[%emt 0:07:04]} Bxd5 {[%emt 0:04:05]} 13. exd5 {[%emt 0:00:09]} O-O {[%emt 0:09:21]} 14. Be2 {[%emt 0:17:13]} a5 {[%emt 0:05:10]} 15. a4 {[%emt 0:07:30]} Nb6 {[%emt 0:01:12]} 16. Bxb6 {[%emt 0:01:11]} Qxb6 {[%emt 0:00:03]} 17. Bb5 {[%emt 0:04:05]} g6 {[%emt 0:03:02]} 18. Rhe1 {[%emt 0:05:16]} Bd8 {[%emt 0:08:32]} 19. f4 {[%emt 0:09:05]} Ng4 {[%emt 0:19:47]} 20. h3 {[%emt 0:03:23]} Nf2 {[%emt 0:14:10]} 21. Rc1 {[%emt 0:01:11]} f5 {[%emt 0:06:21]} 22. fxe5 {[%emt 0:01:31]} Kh7 {[%emt 0:02:55]} 23. c4 {[%emt 0:05:45]} Ne4 {[%emt 0:02:14]} 24. Rxe4 {[%emt 0:00:15]} fxe4 {[%emt 0:00:04]} 25. c5 {[%emt 0:00:12]} dxc5 {[%emt 0:00:11]} 26. Rxc5 {[%emt 0:04:25]} Bh4 {[%emt 0:01:59]} 27. Qc1 {[%emt 0:03:23]} e3 {[%emt 0:02:01]} 28. d6 {[%emt 0:01:23]} Bg5 {[%emt 0:03:54]} 29. Rc7+ {[%emt 0:03:16]} Kh6 {[%emt 0:02:37]} 30. Qc4 {[%emt 0:05:35]} Rf4 {[%emt 0:06:51]} 31. Qe6 {[%emt 0:01:33]} Qxb5 {[%emt 0:02:54]} 32. axb5 {[%emt 0:00:12]} e2 {[%emt 0:00:04]} 33. Rc1 {[%emt 0:00:59]} Rf1 {[%emt 0:00:06]} 34. Rxf1 {[%emt 0:00:55]} exf1=Q+ {[%emt 0:00:07]} 35. Ka2 {[%emt 0:00:04]} Qxb5 {[%emt 0:00:34]} 36. g3 {[%emt 0:00:40]} Rf8 {[%emt 0:01:04]} 37. h4 {[%emt 0:00:21]} Qa4+ {[%emt 0:00:06]} 38. Kb1 {[%emt 0:00:01]} Rf1+ {[%emt 0:00:07]} 39. Kc2 {[%emt 0:00:09]} Qe4+ {[%emt 0:00:02]} 0-1

[Event "2nd Serbian League-Vojvodina 2023"]
[Site "Novi Sad"]
[Date "2023.11.04"]
[Round "3.1"]
[White "Skvortsov, Andrei"]
[Black "Somborski, Nebojsa"]
[Result "1/2-1/2"]
[ECO "C47"]
[WhiteElo "2294"]
[BlackElo "2266"]
[Annotator "RC"]
[PlyCount "68"]
[EventDate "2023.10.22"]
[EventType "team-tourn"]
[EventCountry "SRB"]
[SourceTitle "playchess.com"]
[Source "ChessBase"]
[SourceQuality "1"]
[TimeControl "40/5400+30:1800+30"]

1. e4 {[%emt 0:00:05]} e5 {[%emt 0:01:06]} 2. Nf3 {[%emt 0:00:16]} Nc6 {[%emt 0:00:32]} 3. Nc3 {[%emt 0:00:14]} Nf6 {[%emt 0:00:52]} 4. h3 {[%emt 0:00:06]} a6 {[%emt 0:14:39]} 5. d4 {[%emt 0:01:19]} Bb4 {[%emt 0:03:05]} 6. Nxe5 {[%emt 0:10:03]} Nxe4 {[%emt 0:11:12]} 7. Qf3 {[%emt 0:03:19]} Nf6 {[%emt 0:04:05]} 8. Be3 {[%emt 0:04:41]} d5 {[%emt 0:04:36]} 9. Bd3 {[%emt 0:04:36]} O-O {[%emt 0:10:33]} 10. O-O {[%emt 0:04:18]} Re8 {[%emt 0:00:48]} 11. Rfe1 {[%emt 0:17:10]} Nxe5 {[%emt 0:06:03]} 12. dxe5 {[%emt 0:00:04]} Rxe5 {[%emt 0:00:15]} 13. Bd4 {[%emt 0:00:55]} Rxe1+ {[%emt 0:00:43]} 14. Rxe1 {[%emt 0:00:04]} Be6 {[%emt 0:00:57]} 15. a3 {[%emt 0:02:35]} Bd6 {[%emt 0:05:43]} 16. Bf5 {[%emt 0:09:51]} Bxf5 {[%emt 0:02:09]} 17. Qxf5 {[%emt 0:00:07]} c6 {[%emt 0:00:52]} 18. Re3 {[%emt 0:05:04]} h6 {[%emt 0:09:09]} 19. Rf3 {[%emt 0:05:33]} Qe7 {[%emt 0:08:57]} 20. Kf1 {[%emt 0:00:07]} Ne4 {[%emt 0:00:36]} 21. Nxe4 {[%emt 0:02:48]} dxe4 {[%emt 0:00:10]} 22. Re3 {[%emt 0:00:17]} Re8 {[%emt 0:01:14]} 23. f3 {[%emt 0:00:08]} Qe6 {[%emt 0:00:53]} 24. Qxe6 {[%emt 0:04:09]} Rxe6 {[%emt 0:00:30]} 25. fxe4 {[%emt 0:00:04]} h5 {[%emt 0:03:03]} 26. Kf2 {[%emt 0:04:01]} f6 {[%emt 0:03:37]} 27. Kf3 {[%emt 0:01:47]} Kf7 {[%emt 0:00:15]} 28. Rb3 {[%emt 0:00:17]} Re7 {[%emt 0:02:06]} 29. Rd3 {[%emt 0:00:31]} Ke6 {[%emt 0:00:23]} 30. Bb6 {[%emt 0:01:42]} Rd7 {[%emt 0:00:17]} 31. a4 {[%emt 0:05:32]} Be5 {[%emt 0:00:48]} 32. b3 {[%emt 0:00:48]} g6 {[%emt 0:01:07]} 33. Ke3 {[%emt 0:01:57]} Bh2 {[%emt 0:01:56]} 34. Kf3 {[%emt 0:01:45]} Be5 {[%emt 0:04:19]} 1/2-1/2

[Event "2nd Serbian League-Vojvodina 2023"]
[Site "Novi Sad"]
[Date "2023.11.04"]
[Round "3.2"]
[White "Jakovljev, Zoran"]
[Black "Levitan, Caleb Levi"]
[Result "0-1"]
[ECO "A04"]
[WhiteElo "2194"]
[BlackElo "2219"]
[Annotator "RC"]
[PlyCount "76"]
[EventDate "2023.10.22"]
[EventType "team-tourn"]
[EventCountry "SRB"]
[SourceTitle "playchess.com"]
[Source "ChessBase"]
[SourceQuality "1"]
[TimeControl "40/5400+30:1800+30"]

1. e4 {[%emt 0:00:02]} c5 {[%emt 0:00:09]} 2. Nf3 {[%emt 0:00:02]} e6 {[%emt 0:00:12]} 3. d3 {[%emt 0:00:02]} Nc6 {[%emt 0:00:15]} 4. g3 {[%emt 0:00:01]} g6 {[%emt 0:00:24]} 5. Bg2 {[%emt 0:00:01]} Bg7 {[%emt 0:00:06]} 6. O-O {[%emt 0:00:05]} Nge7 {[%emt 0:00:18]} 7. Re1 {[%emt 0:00:01]} d6 {[%emt 0:00:41]} 8. c3 {[%emt 0:00:03]} e5 {[%emt 0:00:06]} 9. a3 {[%emt 0:02:01]} O-O {[%emt 0:00:55]} 10. b4 {[%emt 0:00:02]} a6 {[%emt 0:00:25]} 11. Bb2 {[%emt 0:00:10]} f5 {[%emt 0:07:39]} 12. Nbd2 {[%emt 0:00:46]} f4 {[%emt 0:01:19]} 13. Qb3+ {[%emt 0:01:55]} Kh8 {[%emt 0:00:18]} 14. Ng5 {[%emt 0:00:29]} Qe8 {[%emt 0:01:04]} 15. Ne6 {[%emt 0:00:13]} Bxe6 {[%emt 0:01:14]} 16. Qxe6 {[%emt 0:00:06]} Rf6 {[%emt 0:01:41]} 17. Qb3 {[%emt 0:00:28]} g5 {[%emt 0:07:24]} 18. g4 {[%emt 0:01:07]} h5 {[%emt 0:03:17]} 19. f3 {[%emt 0:03:04]} Ng6 {[%emt 0:04:46]} 20. h3 {[%emt 0:00:17]} Nh4 {[%emt 0:00:38]} 21. Kf2 {[%emt 0:00:58]} Qd7 {[%emt 0:01:30]} 22. Nc4 {[%emt 0:04:43]} b5 {[%emt 0:05:37]} 23. Nd2 {[%emt 0:09:34]} Rb8 {[%emt 0:05:16]} 24. Kf1 {[%emt 0:02:58]} Rh6 {[%emt 0:01:42]} 25. Rad1 {[%emt 0:06:00]} Bf8 {[%emt 0:08:20]} 26. Re2 {[%emt 0:06:54]} Qh7 {[%emt 0:02:42]} 27. Rf2 {[%emt 0:03:12]} Be7 {[%emt 0:10:00]} 28. Ke2 {[%emt 0:01:11]} Bd8 {[%emt 0:00:45]} 29. Bf1 {[%emt 0:02:11]} Bb6 {[%emt 0:00:28]} 30. Rh2 {[%emt 0:00:09]} hxg4 {[%emt 0:01:15]} 31. hxg4 {[%emt 0:02:05]} Nxf3 {[%emt 0:03:05]} 32. Rg2 {[%emt 0:14:31]} Nxd2 {[%emt 0:32:59]} 33. Kxd2 {[%emt 0:00:43]} c4 {[%emt 0:00:00]} 34. dxc4 {[%emt 0:02:42]} f3 {[%emt 0:00:00]} 35. Rg3 {[%emt 0:00:45]} Qxe4 {[%emt 0:00:00]} 36. c5 {[%emt 0:03:31]} dxc5 {[%emt 0:00:00]} 37. bxc5 {[%emt 0:08:45]} Bxc5 {[%emt 0:00:00]} 38. Bd3 {[%emt 0:00:55]} Qf4+ {[%emt 0:00:00]} 0-1